[Event "Chessable Masters - Torneo preliminare"]
[White "Fier, Alexandr"]
[Black "Petrov, Nikita"]
[WhiteFideId "2107139"]
[BlackFideId "4101286"]
[WhiteElo "2504"]
[BlackElo "2514"]
[Result "1/2-1/2"]
[Round "2"]
[TimeControl "600+2"]
[Date "2023.03.13"]
[WhiteClock "0:01:16"]
[BlackClock "0:00:11"]

1. e4 {[%clk 0:10:01]}  e5 {[%clk 0:09:59]} 2. Nf3 {[%clk 0:10:01]}  Nc6 {[%clk 0:10:00]} 3. Bc4 {[%clk 0:10:02]}  Bc5 {[%clk 0:10:00]} 4. c3 {[%clk 0:10:03]}  Nf6 {[%clk 0:10:00]} 5. d4 {[%clk 0:10:04]}  exd4 {[%clk 0:10:00]} 6. e5 {[%clk 0:10:05]}  d5 {[%clk 0:09:59]} 7. Bb5 {[%clk 0:10:06]}  Ne4 {[%clk 0:10:00]} 8. cxd4 {[%clk 0:10:07]}  Bb6 {[%clk 0:09:59]} 9. Nc3 {[%clk 0:10:08]}  O-O {[%clk 0:09:45]} 10. Be3 {[%clk 0:10:09]}  f5 {[%clk 0:09:16]} 11. exf6 {[%clk 0:10:04]}  Nxf6 {[%clk 0:09:16]} 12. Bxc6 {[%clk 0:09:55]}  bxc6 {[%clk 0:09:17]} 13. Ne5 {[%clk 0:09:53]}  Bb7 {[%clk 0:05:43]} 14. O-O {[%clk 0:09:49]}  Nd7 {[%clk 0:05:44]} 15. Nxd7 {[%clk 0:08:27]}  Qxd7 {[%clk 0:05:46]} 16. Na4 {[%clk 0:08:27]}  Ba6 {[%clk 0:05:35]} 17. Re1 {[%clk 0:08:26]}  Qf5 {[%clk 0:05:06]} 18. Qd2 {[%clk 0:07:57]}  Bb5 {[%clk 0:04:32]} 19. Nc5 {[%clk 0:07:55]}  Bxc5 {[%clk 0:04:14]} 20. dxc5 {[%clk 0:07:57]}  a5 {[%clk 0:04:09]} 21. Bd4 {[%clk 0:07:55]}  a4 {[%clk 0:03:15]} 22. Re3 {[%clk 0:07:22]}  Rae8 {[%clk 0:03:11]} 23. Rae1 {[%clk 0:07:21]}  Rxe3 {[%clk 0:02:45]} 24. Qxe3 {[%clk 0:07:23]}  h6 {[%clk 0:02:31]} 25. h3 {[%clk 0:06:33]}  Rf7 {[%clk 0:02:23]} 26. a3 {[%clk 0:05:51]}  Qd3 {[%clk 0:01:31]} 27. Qe8+ {[%clk 0:05:28]}  Rf8 {[%clk 0:01:31]} 28. Qe6+ {[%clk 0:05:29]}  Rf7 {[%clk 0:01:31]} 29. Qe8+ {[%clk 0:04:25]}  Rf8 {[%clk 0:01:31]} 30. Qe5 {[%clk 0:04:27]}  Rf7 {[%clk 0:01:17]} 31. f3 {[%clk 0:04:27]}  Qf5 {[%clk 0:00:41]} 32. Qxf5 {[%clk 0:03:18]}  Rxf5 {[%clk 0:00:43]} 33. Re8+ {[%clk 0:03:20]}  Rf8 {[%clk 0:00:43]} 34. Rxf8+ {[%clk 0:03:21]}  Kxf8 {[%clk 0:00:43]} 35. Kf2 {[%clk 0:03:18]}  Kf7 {[%clk 0:00:41]} 36. Be5 {[%clk 0:03:04]}  g6 {[%clk 0:00:40]} 37. Bxc7 {[%clk 0:03:04]}  h5 {[%clk 0:00:38]} 38. Be5 {[%clk 0:03:04]}  Ke6 {[%clk 0:00:39]} 39. Bd4 {[%clk 0:03:05]}  Bc4 {[%clk 0:00:38]} 40. g4 {[%clk 0:03:05]}  Bb3 {[%clk 0:00:36]} 41. Kg3 {[%clk 0:03:04]}  Bd1 {[%clk 0:00:27]} 42. f4 {[%clk 0:03:03]}  hxg4 {[%clk 0:00:28]} 43. hxg4 {[%clk 0:03:04]}  Bc2 {[%clk 0:00:29]} 44. Kh4 {[%clk 0:03:05]}  Bd3 {[%clk 0:00:26]} 45. Kg5 {[%clk 0:03:06]}  Bc2 {[%clk 0:00:23]} 46. Kh6 {[%clk 0:02:57]}  Kf7 {[%clk 0:00:16]} 47. Bc3 {[%clk 0:02:25]}  Bd3 {[%clk 0:00:17]} 48. b3 {[%clk 0:02:04]}  axb3 {[%clk 0:00:19]} 49. a4 {[%clk 0:02:05]}  Ba6 {[%clk 0:00:11]} 50. a5 {[%clk 0:02:05]}  Bd3 {[%clk 0:00:12]} 51. Bd4 {[%clk 0:02:05]}  Kg8 {[%clk 0:00:10]} 52. Kg5 {[%clk 0:02:05]}  Kf7 {[%clk 0:00:11]} 53. f5 {[%clk 0:02:07]}  gxf5 {[%clk 0:00:12]} 54. gxf5 {[%clk 0:02:09]}  Bb5 {[%clk 0:00:08]} 55. Kf4 {[%clk 0:02:10]}  Ke7 {[%clk 0:00:07]} 56. Ke5 {[%clk 0:02:11]}  Bc4 {[%clk 0:00:05]} 57. Bb2 {[%clk 0:01:59]}  Bd3 {[%clk 0:00:06]} 58. Kf4 {[%clk 0:01:24]}  Bc4 {[%clk 0:00:06]} 59. Kg5 {[%clk 0:01:25]}  Kf7 {[%clk 0:00:08]} 60. f6 {[%clk 0:01:14]}  Bd3 {[%clk 0:00:09]} 61. Kf4 {[%clk 0:01:15]}  Ke6 {[%clk 0:00:09]} 62. Kg5 {[%clk 0:01:14]}  Kf7 {[%clk 0:00:10]} 63. Bd4 {[%clk 0:01:15]}  Ke6 {[%clk 0:00:05]} 64. Kf4 {[%clk 0:01:14]}  Bb5 {[%clk 0:00:05]} 65. Kg4 {[%clk 0:01:12]}  Bd3 {[%clk 0:00:05]} 66. Kg5 {[%clk 0:01:14]}  Kf7 {[%clk 0:00:06]} 67. Kh6 {[%clk 0:01:15]}  Bb5 {[%clk 0:00:06]} 68. Kh5 {[%clk 0:01:12]}  Be2+ {[%clk 0:00:07]} 69. Kg5 {[%clk 0:01:12]}  Bd3 {[%clk 0:00:08]} 70. Kf4 {[%clk 0:01:13]}  Ke6 {[%clk 0:00:09]} 71. Ke3 {[%clk 0:01:14]}  Bb5 {[%clk 0:00:11]} 72. Kd2 {[%clk 0:01:15]}  Bc4 {[%clk 0:00:11]} 73. Kc3 {[%clk 0:01:16]}  Kf7 {[%clk 0:00:11]} 1/2-1/2


[Site "Internet"]

[Event "Chessable Masters - Torneo preliminare"]
[White "Kosteniuk, Alexandra"]
[Black "Vaibhav, Suri"]
[WhiteFideId "4128125"]
[BlackFideId "5045185"]
[WhiteElo "2524"]
[BlackElo "2543"]
[Result "1-0"]
[Round "2"]
[TimeControl "600+2"]
[Date "2023.03.13"]
[WhiteClock "0:00:21"]
[BlackClock "0:00:18"]

1. e4 {[%clk 0:10:01]}  e5 {[%clk 0:10:00]} 2. Nf3 {[%clk 0:10:01]}  Nc6 {[%clk 0:10:01]} 3. Bc4 {[%clk 0:10:02]}  Bc5 {[%clk 0:09:57]} 4. c3 {[%clk 0:10:03]}  Nf6 {[%clk 0:09:58]} 5. d4 {[%clk 0:10:03]}  exd4 {[%clk 0:09:59]} 6. cxd4 {[%clk 0:10:04]}  Bb4+ {[%clk 0:10:00]} 7. Nbd2 {[%clk 0:10:03]}  Nxe4 {[%clk 0:09:48]} 8. d5 {[%clk 0:10:02]}  Ne7 {[%clk 0:09:47]} 9. O-O {[%clk 0:09:48]}  Nxd2 {[%clk 0:09:48]} 10. Nxd2 {[%clk 0:09:46]}  O-O {[%clk 0:09:43]} 11. Ne4 {[%clk 0:09:18]}  d6 {[%clk 0:08:45]} 12. a3 {[%clk 0:08:59]}  Ba5 {[%clk 0:08:44]} 13. b4 {[%clk 0:08:58]}  Bb6 {[%clk 0:08:45]} 14. Bb2 {[%clk 0:08:30]}  Ng6 {[%clk 0:08:42]} 15. Qd2 {[%clk 0:08:05]}  Ne5 {[%clk 0:07:02]} 16. Be2 {[%clk 0:04:11]}  Qh4 {[%clk 0:06:51]} 17. Ng5 {[%clk 0:04:10]}  h6 {[%clk 0:04:10]} 18. Nf3 {[%clk 0:04:00]}  Nxf3+ {[%clk 0:04:10]} 19. Bxf3 {[%clk 0:04:02]}  Bf5 {[%clk 0:04:11]} 20. Qc3 {[%clk 0:03:50]}  Qg5 {[%clk 0:04:02]} 21. h4 {[%clk 0:03:36]}  Qg6 {[%clk 0:04:02]} 22. Bh5 {[%clk 0:03:24]}  Qh7 {[%clk 0:04:01]} 23. Rfe1 {[%clk 0:03:20]}  Bg6 {[%clk 0:03:18]} 24. Bf3 {[%clk 0:02:47]}  a5 {[%clk 0:03:08]} 25. Re7 {[%clk 0:02:40]}  axb4 {[%clk 0:02:50]} 26. axb4 {[%clk 0:02:42]}  Rxa1+ {[%clk 0:02:51]} 27. Bxa1 {[%clk 0:02:43]}  h5 {[%clk 0:02:48]} 28. Bb2 {[%clk 0:02:32]}  f6 {[%clk 0:02:47]} 29. Qe1 {[%clk 0:02:09]}  Kh8 {[%clk 0:01:58]} 30. Qe2 {[%clk 0:01:27]}  Qh6 {[%clk 0:01:56]} 31. g3 {[%clk 0:01:28]}  Ra8 {[%clk 0:01:34]} 32. Kg2 {[%clk 0:01:11]}  Rf8 {[%clk 0:01:05]} 33. Qe1 {[%clk 0:01:04]}  Qh7 {[%clk 0:01:04]} 34. Qd1 {[%clk 0:00:40]}  Re8 {[%clk 0:01:01]} 35. Rxe8+ {[%clk 0:00:25]}  Bxe8 {[%clk 0:01:02]} 36. Qe2 {[%clk 0:00:25]}  Bf7 {[%clk 0:00:53]} 37. Be4 {[%clk 0:00:10]}  Qg8 {[%clk 0:00:52]} 38. Qf3 {[%clk 0:00:11]}  Qe8 {[%clk 0:00:51]} 39. Qf5 {[%clk 0:00:11]}  Kg8 {[%clk 0:00:45]} 40. Qh7+ {[%clk 0:00:11]}  Kf8 {[%clk 0:00:47]} 41. Qh8+ {[%clk 0:00:13]}  Bg8 {[%clk 0:00:47]} 42. Bh7 {[%clk 0:00:08]}  Qf7 {[%clk 0:00:45]} 43. Bxg8 {[%clk 0:00:09]}  Qxg8 {[%clk 0:00:46]} 44. Qxh5 {[%clk 0:00:11]}  Qf7 {[%clk 0:00:40]} 45. Qf5 {[%clk 0:00:11]}  Ke7 {[%clk 0:00:36]} 46. h5 {[%clk 0:00:11]}  c6 {[%clk 0:00:36]} 47. dxc6 {[%clk 0:00:11]}  bxc6 {[%clk 0:00:38]} 48. Qe4+ {[%clk 0:00:11]}  Kd7 {[%clk 0:00:39]} 49. Qg4+ {[%clk 0:00:12]}  Kc7 {[%clk 0:00:39]} 50. Qf3 {[%clk 0:00:10]}  Qe6 {[%clk 0:00:31]} 51. Bc3 {[%clk 0:00:10]}  d5 {[%clk 0:00:31]} 52. Bd2 {[%clk 0:00:11]}  Kd7 {[%clk 0:00:31]} 53. g4 {[%clk 0:00:11]}  Bc7 {[%clk 0:00:32]} 54. Be3 {[%clk 0:00:11]}  Qe5 {[%clk 0:00:31]} 55. Bc5 {[%clk 0:00:10]}  Bd6 {[%clk 0:00:26]} 56. Bxd6 {[%clk 0:00:10]}  Kxd6 {[%clk 0:00:28]} 57. Qa3 {[%clk 0:00:09]}  Qe4+ {[%clk 0:00:22]} 58. Kg3 {[%clk 0:00:09]}  Ke6 {[%clk 0:00:18]} 59. Qa8 {[%clk 0:00:09]}  d4 {[%clk 0:00:14]} 60. Qg8+ {[%clk 0:00:08]}  Kd6 {[%clk 0:00:14]} 61. Qxg7 {[%clk 0:00:10]}  Qe5+ {[%clk 0:00:12]} 62. Kg2 {[%clk 0:00:10]}  d3 {[%clk 0:00:14]} 63. Qf8+ {[%clk 0:00:11]}  Kd5 {[%clk 0:00:15]} 64. Qd8+ {[%clk 0:00:11]}  Kc4 {[%clk 0:00:16]} 65. h6 {[%clk 0:00:12]}  Qe4+ {[%clk 0:00:13]} 66. Kg3 {[%clk 0:00:12]}  Qe5+ {[%clk 0:00:14]} 67. Kg2 {[%clk 0:00:13]}  Qe2 {[%clk 0:00:13]} 68. Kg3 {[%clk 0:00:07]}  d2 {[%clk 0:00:09]} 69. h7 {[%clk 0:00:08]}  Qe5+ {[%clk 0:00:08]} 70. Kh3 {[%clk 0:00:07]}  Qd5 {[%clk 0:00:04]} 71. Qxd5+ {[%clk 0:00:08]}  cxd5 {[%clk 0:00:04]} 72. h8=Q {[%clk 0:00:09]}  d1=Q {[%clk 0:00:06]} 73. Qxf6 {[%clk 0:00:10]}  Qh1+ {[%clk 0:00:07]} 74. Kg3 {[%clk 0:00:11]}  d4 {[%clk 0:00:09]} 75. Qf7+ {[%clk 0:00:05]}  Kc3 {[%clk 0:00:10]} 76. Qc7+ {[%clk 0:00:06]}  Kd2 {[%clk 0:00:08]} 77. Qf4+ {[%clk 0:00:06]}  Kc3 {[%clk 0:00:10]} 78. Qe5 {[%clk 0:00:06]}  Qg1+ {[%clk 0:00:08]} 79. Kf3 {[%clk 0:00:07]}  Qh1+ {[%clk 0:00:09]} 80. Kg3 {[%clk 0:00:08]}  Qg1+ {[%clk 0:00:11]} 81. Kf3 {[%clk 0:00:09]}  Qh1+ {[%clk 0:00:12]} 82. Ke2 {[%clk 0:00:08]}  Qg1 {[%clk 0:00:04]} 83. Qc5+ {[%clk 0:00:08]}  Kb3 {[%clk 0:00:04]} 84. Qxd4 {[%clk 0:00:09]}  Qg2 {[%clk 0:00:04]} 85. g5 {[%clk 0:00:08]}  Kc2 {[%clk 0:00:04]} 86. Qc4+ {[%clk 0:00:08]}  Kb2 {[%clk 0:00:05]} 87. Qd4+ {[%clk 0:00:09]}  Kc2 {[%clk 0:00:06]} 88. Qd3+ {[%clk 0:00:11]}  Kb2 {[%clk 0:00:07]} 89. g6 {[%clk 0:00:12]}  Qg4+ {[%clk 0:00:07]} 90. f3 {[%clk 0:00:13]}  Qg2+ {[%clk 0:00:09]} 91. Ke3 {[%clk 0:00:15]}  Qg5+ {[%clk 0:00:10]} 92. Kf2 {[%clk 0:00:15]}  Qh4+ {[%clk 0:00:11]} 93. Ke2 {[%clk 0:00:17]}  Qh2+ {[%clk 0:00:12]} 94. Ke3 {[%clk 0:00:18]}  Qg1+ {[%clk 0:00:14]} 95. Kf4 {[%clk 0:00:17]}  Qh2+ {[%clk 0:00:15]} 96. Kf5 {[%clk 0:00:18]}  Qh5+ {[%clk 0:00:16]} 97. Ke6 {[%clk 0:00:19]}  Qh3+ {[%clk 0:00:16]} 98. Qf5 {[%clk 0:00:20]}  Qh6 {[%clk 0:00:16]} 99. Qf6+ {[%clk 0:00:21]}  Kb3 {[%clk 0:00:18]} 100. g7 {[%clk 0:00:21]} 1-0


[Site "Internet"]

[Event "Chessable Masters - Torneo preliminare"]
[White "Xu, Yi"]
[Black "Le, Tuan Minh"]
[WhiteFideId "8605564"]
[BlackFideId "12401153"]
[WhiteElo "2402"]
[BlackElo "2489"]
[Result "0-1"]
[Round "2"]
[TimeControl "600+2"]
[Date "2023.03.13"]
[WhiteClock "0:00:05"]
[BlackClock "0:00:13"]

1. e4 {[%clk 0:10:01]}  c5 {[%clk 0:09:53]} 2. Nf3 {[%clk 0:10:02]}  Nf6 {[%clk 0:09:54]} 3. e5 {[%clk 0:09:36]}  Nd5 {[%clk 0:09:55]} 4. Nc3 {[%clk 0:09:38]}  e6 {[%clk 0:09:49]} 5. Nxd5 {[%clk 0:09:04]}  exd5 {[%clk 0:09:51]} 6. d4 {[%clk 0:09:04]}  Nc6 {[%clk 0:09:52]} 7. dxc5 {[%clk 0:09:03]}  Bxc5 {[%clk 0:09:54]} 8. Qxd5 {[%clk 0:09:03]}  d6 {[%clk 0:09:55]} 9. exd6 {[%clk 0:08:07]}  Qb6 {[%clk 0:09:54]} 10. Qe4+ {[%clk 0:08:08]}  Be6 {[%clk 0:09:54]} 11. Qh4 {[%clk 0:08:07]}  Bxd6 {[%clk 0:09:55]} 12. c3 {[%clk 0:06:46]}  Be7 {[%clk 0:09:30]} 13. Qg3 {[%clk 0:06:11]}  O-O-O {[%clk 0:08:40]} 14. Be2 {[%clk 0:06:06]}  h5 {[%clk 0:08:24]} 15. O-O {[%clk 0:05:33]}  h4 {[%clk 0:08:23]} 16. Qf4 {[%clk 0:05:32]}  g5 {[%clk 0:07:32]} 17. Nxg5 {[%clk 0:04:58]}  Bxg5 {[%clk 0:06:45]} 18. Qxg5 {[%clk 0:05:00]}  Rdg8 {[%clk 0:06:47]} 19. Qe3 {[%clk 0:04:53]}  Qa5 {[%clk 0:05:36]} 20. Bf3 {[%clk 0:04:38]}  Qf5 {[%clk 0:04:38]} 21. Qf4 {[%clk 0:03:41]}  Qg6 {[%clk 0:01:57]} 22. Kh1 {[%clk 0:02:47]}  Rh5 {[%clk 0:01:55]} 23. Be3 {[%clk 0:02:07]}  Rf5 {[%clk 0:01:37]} 24. Be4 {[%clk 0:02:06]}  h3 {[%clk 0:00:40]} 25. g3 {[%clk 0:01:34]}  Bd5 {[%clk 0:00:17]} 26. Bxd5 {[%clk 0:00:34]}  Rxf4 {[%clk 0:00:18]} 27. Bxf4 {[%clk 0:00:35]}  Rd8 {[%clk 0:00:15]} 28. Bf3 {[%clk 0:00:06]}  Rd3 {[%clk 0:00:15]} 29. Bd1 {[%clk 0:00:05]}  Ne7 {[%clk 0:00:07]} 30. Kg1 {[%clk 0:00:05]}  Nd5 {[%clk 0:00:08]} 31. Be5 {[%clk 0:00:02]}  Qe4 {[%clk 0:00:09]} 32. f3 {[%clk 0:00:03]}  Qxe5 {[%clk 0:00:11]} 33. Bc2 {[%clk 0:00:04]}  Qe3+ {[%clk 0:00:12]} 34. Rf2 {[%clk 0:00:05]}  Rd2 {[%clk 0:00:13]} 0-1


[Site "Internet"]

[Event "Chessable Masters - Torneo preliminare"]
[White "Martinez Alcantara, Jose Eduardo"]
[Black "Matinian, Nikita"]
[WhiteFideId "3805662"]
[BlackFideId "24129100"]
[WhiteElo "2643"]
[BlackElo "2326"]
[Result "1-0"]
[Round "2"]
[TimeControl "600+2"]
[Date "2023.03.13"]
[WhiteClock "0:00:08"]
[BlackClock "0:00:03"]

1. e4 {[%clk 0:09:57]}  e5 {[%clk 0:10:01]} 2. Nf3 {[%clk 0:09:57]}  Nc6 {[%clk 0:10:02]} 3. Nc3 {[%clk 0:09:59]}  Nf6 {[%clk 0:10:03]} 4. h3 {[%clk 0:10:00]}  d5 {[%clk 0:09:59]} 5. exd5 {[%clk 0:09:55]}  Nxd5 {[%clk 0:10:01]} 6. Bb5 {[%clk 0:09:55]}  Nxc3 {[%clk 0:09:58]} 7. bxc3 {[%clk 0:09:57]}  Bd6 {[%clk 0:09:59]} 8. d4 {[%clk 0:09:58]}  exd4 {[%clk 0:09:57]} 9. cxd4 {[%clk 0:09:59]}  O-O {[%clk 0:09:58]} 10. O-O {[%clk 0:10:01]}  h6 {[%clk 0:09:39]} 11. c4 {[%clk 0:09:58]}  Qf6 {[%clk 0:09:35]} 12. Re1 {[%clk 0:09:37]}  Bf5 {[%clk 0:09:26]} 13. Be3 {[%clk 0:07:45]}  Rad8 {[%clk 0:08:06]} 14. Bxc6 {[%clk 0:07:04]}  bxc6 {[%clk 0:08:05]} 15. Qe2 {[%clk 0:06:46]}  Rfe8 {[%clk 0:07:40]} 16. c5 {[%clk 0:06:45]}  Bf8 {[%clk 0:06:25]} 17. Nd2 {[%clk 0:05:54]}  Qg6 {[%clk 0:05:47]} 18. Qf3 {[%clk 0:05:46]}  Rd5 {[%clk 0:05:44]} 19. Bf4 {[%clk 0:04:49]}  Rxe1+ {[%clk 0:04:41]} 20. Rxe1 {[%clk 0:04:51]}  Rxd4 {[%clk 0:04:42]} 21. Re8 {[%clk 0:04:52]}  Bd7 {[%clk 0:04:03]} 22. Ra8 {[%clk 0:04:36]}  Qf5 {[%clk 0:03:23]} 23. Be3 {[%clk 0:04:04]}  Qxf3 {[%clk 0:02:28]} 24. Nxf3 {[%clk 0:04:04]}  Rd5 {[%clk 0:02:28]} 25. a4 {[%clk 0:02:46]}  g5 {[%clk 0:02:08]} 26. a5 {[%clk 0:02:25]}  f5 {[%clk 0:01:49]} 27. a6 {[%clk 0:01:58]}  f4 {[%clk 0:01:49]} 28. Bd4 {[%clk 0:01:54]}  g4 {[%clk 0:01:46]} 29. hxg4 {[%clk 0:01:54]}  Bxg4 {[%clk 0:01:48]} 30. Bc3 {[%clk 0:01:28]}  Rd1+ {[%clk 0:01:00]} 31. Kh2 {[%clk 0:01:25]}  Bxf3 {[%clk 0:01:01]} 32. gxf3 {[%clk 0:01:27]}  Rd3 {[%clk 0:01:01]} 33. Be5 {[%clk 0:01:21]}  Rxf3 {[%clk 0:00:42]} 34. Bxc7 {[%clk 0:01:15]}  Kf7 {[%clk 0:00:42]} 35. Kg2 {[%clk 0:00:42]}  Ra3 {[%clk 0:00:40]} 36. Rxa7 {[%clk 0:00:39]}  Ke6 {[%clk 0:00:35]} 37. Bb6 {[%clk 0:00:32]}  Be7 {[%clk 0:00:18]} 38. Ra8 {[%clk 0:00:29]}  f3+ {[%clk 0:00:07]} 39. Kh3 {[%clk 0:00:28]}  Ra1 {[%clk 0:00:04]} 40. a7 {[%clk 0:00:26]}  Bg5 {[%clk 0:00:04]} 41. Re8+ {[%clk 0:00:18]}  Kf5 {[%clk 0:00:05]} 42. Rf8+ {[%clk 0:00:20]}  Ke4 {[%clk 0:00:05]} 43. a8=Q {[%clk 0:00:14]}  Rh1+ {[%clk 0:00:06]} 44. Kg4 {[%clk 0:00:06]}  Rh4+ {[%clk 0:00:03]} 45. Kg3 {[%clk 0:00:08]} 1-0


[Site "Internet"]

[Event "Chessable Masters - Torneo preliminare"]
[White "Cardoso Cardoso, Jose Gabriel"]
[Black "Bluebaum, Matthias"]
[WhiteFideId "4430492"]
[BlackFideId "24651516"]
[WhiteElo "2425"]
[BlackElo "2601"]
[Result "1/2-1/2"]
[Round "2"]
[TimeControl "600+2"]
[Date "2023.03.13"]
[WhiteClock "0:00:24"]
[BlackClock "0:00:26"]

1. d4 {[%clk 0:09:58]}  d5 {[%clk 0:09:59]} 2. c4 {[%clk 0:09:57]}  e6 {[%clk 0:10:01]} 3. Nc3 {[%clk 0:09:57]}  Bb4 {[%clk 0:10:02]} 4. a3 {[%clk 0:09:50]}  Bxc3+ {[%clk 0:10:02]} 5. bxc3 {[%clk 0:09:52]}  Nf6 {[%clk 0:10:03]} 6. e3 {[%clk 0:09:46]}  c6 {[%clk 0:10:05]} 7. cxd5 {[%clk 0:09:26]}  cxd5 {[%clk 0:10:04]} 8. Bd3 {[%clk 0:09:18]}  O-O {[%clk 0:10:02]} 9. Ne2 {[%clk 0:09:08]}  b6 {[%clk 0:10:02]} 10. c4 {[%clk 0:08:54]}  Ba6 {[%clk 0:08:54]} 11. cxd5 {[%clk 0:08:53]}  Qxd5 {[%clk 0:08:52]} 12. O-O {[%clk 0:08:22]}  Bxd3 {[%clk 0:08:38]} 13. Qxd3 {[%clk 0:08:21]}  Nc6 {[%clk 0:08:40]} 14. Rd1 {[%clk 0:07:53]}  Rfd8 {[%clk 0:08:38]} 15. Rb1 {[%clk 0:07:18]}  Ne5 {[%clk 0:07:57]} 16. Qb3 {[%clk 0:06:55]}  Nc4 {[%clk 0:07:34]} 17. f3 {[%clk 0:06:38]}  Rac8 {[%clk 0:07:11]} 18. e4 {[%clk 0:06:32]}  Qa5 {[%clk 0:07:12]} 19. a4 {[%clk 0:06:18]}  e5 {[%clk 0:06:22]} 20. Qb5 {[%clk 0:04:45]}  exd4 {[%clk 0:06:11]} 21. Qxa5 {[%clk 0:04:45]}  Nxa5 {[%clk 0:06:11]} 22. Nxd4 {[%clk 0:04:46]}  Rc4 {[%clk 0:05:27]} 23. Be3 {[%clk 0:04:42]}  Rxa4 {[%clk 0:05:25]} 24. Nf5 {[%clk 0:03:58]}  Rxd1+ {[%clk 0:04:49]} 25. Rxd1 {[%clk 0:03:58]}  h6 {[%clk 0:04:51]} 26. Rd8+ {[%clk 0:03:17]}  Kh7 {[%clk 0:04:52]} 27. Rf8 {[%clk 0:03:19]}  Nc4 {[%clk 0:04:18]} 28. Bxh6 {[%clk 0:03:12]}  Ra1+ {[%clk 0:03:46]} 29. Kf2 {[%clk 0:03:12]}  Ra2+ {[%clk 0:03:48]} 30. Ke1 {[%clk 0:02:39]}  Ra1+ {[%clk 0:03:47]} 31. Ke2 {[%clk 0:02:39]}  Ra2+ {[%clk 0:03:49]} 32. Kd1 {[%clk 0:02:22]}  Rxg2 {[%clk 0:02:31]} 33. Bxg7 {[%clk 0:02:21]}  Rxg7 {[%clk 0:02:28]} 34. Nxg7 {[%clk 0:02:05]}  Kxg7 {[%clk 0:02:30]} 35. Rc8 {[%clk 0:01:46]}  b5 {[%clk 0:02:22]} 36. Ke2 {[%clk 0:01:39]}  a5 {[%clk 0:02:19]} 37. Rc5 {[%clk 0:01:35]}  Na3 {[%clk 0:01:34]} 38. Kd3 {[%clk 0:01:17]}  Nd7 {[%clk 0:01:19]} 39. Rd5 {[%clk 0:00:54]}  Nb6 {[%clk 0:00:51]} 40. Rg5+ {[%clk 0:00:55]}  Kf6 {[%clk 0:00:20]} 41. h4 {[%clk 0:00:56]}  Nd7 {[%clk 0:00:19]} 42. f4 {[%clk 0:00:52]}  a4 {[%clk 0:00:15]} 43. h5 {[%clk 0:00:45]}  b4 {[%clk 0:00:12]} 44. h6 {[%clk 0:00:28]}  Nf8 {[%clk 0:00:13]} 45. Rg8 {[%clk 0:00:26]}  Nh7 {[%clk 0:00:06]} 46. Rg7 {[%clk 0:00:25]}  b3 {[%clk 0:00:07]} 47. Kc3 {[%clk 0:00:23]}  Nb5+ {[%clk 0:00:09]} 48. Kb2 {[%clk 0:00:23]}  Nf8 {[%clk 0:00:10]} 49. e5+ {[%clk 0:00:18]}  Ke7 {[%clk 0:00:10]} 50. f5 {[%clk 0:00:14]}  Nd4 {[%clk 0:00:10]} 51. e6 {[%clk 0:00:13]}  Nxf5 {[%clk 0:00:04]} 52. Rxf7+ {[%clk 0:00:06]}  Kxe6 {[%clk 0:00:05]} 53. Rxf8 {[%clk 0:00:06]}  Nxh6 {[%clk 0:00:07]} 54. Ra8 {[%clk 0:00:07]}  Nf5 {[%clk 0:00:09]} 55. Rxa4 {[%clk 0:00:08]}  Nd6 {[%clk 0:00:10]} 56. Kxb3 {[%clk 0:00:10]}  Kd5 {[%clk 0:00:12]} 57. Ra5+ {[%clk 0:00:10]}  Ke6 {[%clk 0:00:13]} 58. Kb4 {[%clk 0:00:12]}  Nf5 {[%clk 0:00:14]} 59. Kc5 {[%clk 0:00:13]}  Ke5 {[%clk 0:00:15]} 60. Ra1 {[%clk 0:00:14]}  Ke4 {[%clk 0:00:16]} 61. Re1+ {[%clk 0:00:15]}  Kd3 {[%clk 0:00:16]} 62. Re5 {[%clk 0:00:15]}  Ne3 {[%clk 0:00:17]} 63. Re8 {[%clk 0:00:15]}  Nf5 {[%clk 0:00:17]} 64. Kd5 {[%clk 0:00:15]}  Ne3+ {[%clk 0:00:17]} 65. Ke5 {[%clk 0:00:16]}  Nc4+ {[%clk 0:00:19]} 66. Kf4 {[%clk 0:00:18]}  Kd4 {[%clk 0:00:19]} 67. Rd8+ {[%clk 0:00:19]}  Kc5 {[%clk 0:00:20]} 68. Ke4 {[%clk 0:00:20]}  Nd6+ {[%clk 0:00:21]} 69. Kd3 {[%clk 0:00:22]}  Kd5 {[%clk 0:00:22]} 70. Rh8 {[%clk 0:00:23]}  Ke5 {[%clk 0:00:23]} 71. Rh6 {[%clk 0:00:23]}  Nf5 {[%clk 0:00:24]} 72. Rh1 {[%clk 0:00:24]}  Nd6 {[%clk 0:00:25]} 73. Ra1 {[%clk 0:00:24]}  Nf5 {[%clk 0:00:25]} 74. Ra5+ {[%clk 0:00:24]}  Kf4 {[%clk 0:00:26]} 1/2-1/2


[Site "Internet"]

[Event "Chessable Masters - Torneo preliminare"]
[White "Mikaelyan, Arman"]
[Black "Kravtsiv, Martyn"]
[WhiteFideId "13304852"]
[BlackFideId "14113147"]
[WhiteElo "2456"]
[BlackElo "2675"]
[Result "1-0"]
[Round "2"]
[TimeControl "600+2"]
[Date "2023.03.13"]
[WhiteClock "0:02:22"]
[BlackClock "0:00:14"]

1. d4 {[%clk 0:10:00]}  Nf6 {[%clk 0:09:55]} 2. c4 {[%clk 0:09:56]}  e6 {[%clk 0:09:54]} 3. Nc3 {[%clk 0:09:51]}  d5 {[%clk 0:09:52]} 4. Nf3 {[%clk 0:09:44]}  Nbd7 {[%clk 0:09:47]} 5. cxd5 {[%clk 0:09:32]}  exd5 {[%clk 0:09:45]} 6. Bg5 {[%clk 0:09:27]}  Bb4 {[%clk 0:09:31]} 7. e3 {[%clk 0:08:38]}  c5 {[%clk 0:09:25]} 8. dxc5 {[%clk 0:08:29]}  Qa5 {[%clk 0:08:32]} 9. Bxf6 {[%clk 0:07:44]}  Nxf6 {[%clk 0:08:24]} 10. Qd4 {[%clk 0:07:44]}  O-O {[%clk 0:07:53]} 11. Bd3 {[%clk 0:07:40]}  Bxc5 {[%clk 0:07:20]} 12. Qh4 {[%clk 0:07:35]}  Ba3 {[%clk 0:06:09]} 13. Qa4 {[%clk 0:06:15]}  Qxa4 {[%clk 0:05:59]} 14. Nxa4 {[%clk 0:06:17]}  Bd7 {[%clk 0:05:59]} 15. bxa3 {[%clk 0:06:08]}  Bxa4 {[%clk 0:05:58]} 16. Kd2 {[%clk 0:05:59]}  Rfc8 {[%clk 0:05:40]} 17. Nd4 {[%clk 0:05:24]}  g6 {[%clk 0:05:31]} 18. f3 {[%clk 0:05:06]}  Kf8 {[%clk 0:05:28]} 19. g4 {[%clk 0:04:48]}  Nd7 {[%clk 0:05:14]} 20. Rab1 {[%clk 0:04:33]}  b6 {[%clk 0:04:42]} 21. h4 {[%clk 0:04:17]}  Ne5 {[%clk 0:03:48]} 22. h5 {[%clk 0:03:51]}  Nc6 {[%clk 0:02:59]} 23. hxg6 {[%clk 0:03:29]}  hxg6 {[%clk 0:02:57]} 24. Rh7 {[%clk 0:03:08]}  Nxd4 {[%clk 0:02:31]} 25. exd4 {[%clk 0:03:10]}  Be8 {[%clk 0:01:36]} 26. Re1 {[%clk 0:02:56]}  a6 {[%clk 0:00:49]} 27. f4 {[%clk 0:02:47]}  Kg8 {[%clk 0:00:11]} 28. Reh1 {[%clk 0:02:32]}  Rc6 {[%clk 0:00:13]} 29. Rh8+ {[%clk 0:02:20]}  Kg7 {[%clk 0:00:14]} 30. g5 {[%clk 0:02:22]} 1-0


[Site "Internet"]